bitfinex/quotes_ETHUSD_20240730
["timestamp","ask_amount","ask_price","bid_price","bid_amount"]
[1722383146506,1.98318482,3282.6,3282.5,2.4955]
[1722383146718,1.98318482,3282.6,3282.2,2.3628]
[1722383146719,0.06933178,3282.6,3282.2,2.3628]
[1722383146926,0.06933178,3282.6,3282.2,2.90376]
[1722383146927,1.073,3282.3,3282.2,2.90376]
[1722383147095,1.073,3282.3,3281.9,10.39695]
[1722383147289,1.073,3282.3,3281.9,12.65035]
[1722383147290,1.14218261,3282.3,3281.9,12.65035]
[1722383147649,1.59332018,3282.0,3281.9,12.65035]
[1722383147983,1.27467245,3282.0,3281.9,9.6034]
[1722383148148,0.0690788,3282.0,3281.9,7.35]
[1722383148634,1.66163972,3282.0,3281.9,9.602719]
[1722383148866,1.66162931,3282.0,3281.9,9.602719]
[1722383149154,1.66159705,3282.0,3281.9,9.602719]
[1722383149295,1.66159705,3282.0,3281.9,2.452719]
[1722383149492,1.66159705,3282.0,3281.9,0.2]
[1722383149694,1.6609175,3282.0,3281.9,0.2]
[1722383150731,0.0690788,3282.0,3281.9,0.2]
[1722383151133,1.34183748,3282.0,3281.9,0.2]
[1722383151339,1.34183748,3282.0,3281.9,0.1991967]
[1722383151724,1.34186055,3282.0,3281.9,0.1991967]
[1722383151898,1.34187859,3282.0,3281.9,0.1991967]
[1722383153539,1.34187859,3282.0,3281.9,0.3991967]
[1722383157569,0.0690788,3282.0,3281.9,0.3991967]
[1722383160126,1.34187859,3282.0,3281.9,0.3991967]
[1722383161464,5.14454584,3282.0,3281.9,0.3991967]
[1722383162530,8.19146584,3282.0,3281.9,0.3991967]
[1722383162730,8.5092637,3282.0,3281.9,0.3991967]
[1722383162964,6.60178166,3282.0,3281.9,0.3991967]
[1722383163128,9.64870166,3282.0,3281.9,0.3991967]
[1722383163629,18.09682166,3282.0,3281.9,0.3991967]
[1722383164265,15.04990166,3282.0,3281.9,0.3991967]
[1722383164433,17.27343227,3282.0,3281.9,0.3991967]
[1722383165332,16.12290166,3282.0,3281.9,0.3991967]
[1722383165728,9.60178166,3282.0,3281.9,0.3991967]
[1722383165949,12.58015263,3282.0,3281.9,0.3991967]
[1722383166154,10.67478166,3282.0,3281.9,0.3991967]
[1722383166359,12.58019344,3282.0,3281.9,0.3991967]
[1722383166527,0.0690788,3282.0,3281.9,0.3991967]
[1722383166745,3.1159988,3282.0,3281.9,0.3991967]
[1722383166961,4.38622664,3282.0,3281.9,0.3991967]
[1722383167161,7.75063297,3282.0,3281.9,0.3991967]
[1722383167389,6.1629188,3282.0,3281.9,0.3991967]
[1722383167747,7.75055249,3282.0,3281.9,0.3991967]
[1722383167980,7.04527405,3282.0,3281.9,0.3991967]
[1722383168196,8.63332605,3282.0,3281.9,0.3991967]
[1722383169094,7.04527405,3282.0,3281.9,0.3991967]
[1722383170876,8.63297539,3282.0,3281.9,0.3991967]
[1722383171074,7.75062014,3282.0,3281.9,0.3991967]
[1722383172639,7.75052998,3282.0,3281.9,0.3991967]
[1722383172997,6.1629188,3282.0,3281.9,0.3991967]
[1722383173793,4.70346549,3282.0,3281.9,0.3991967]
[1722383173991,5.45901625,3282.0,3281.9,0.3991967]
[1722383175031,4.1889988,3282.0,3281.9,0.3991967]
[1722383175522,8.82357448,3282.0,3281.9,0.3991967]
[1722383175830,9.70604804,3282.0,3281.9,0.3991967]
[1722383175999,8.11827625,3282.0,3281.9,0.3991967]
[1722383176811,10.0236024,3282.0,3281.9,0.3991967]
[1722383177749,8.11827625,3282.0,3281.9,0.3991967]
[1722383178945,4.1889988,3282.0,3281.9,0.3991967]
[1722383180533,7.2359188,3282.0,3281.9,0.3991967]
[1722383180731,4.1889988,3282.0,3281.9,0.3991967]
[1722383181343,7.2359188,3282.0,3281.9,0.3991967]
[1722383181521,1.1420788,3282.0,3281.9,0.3991967]
[1722383181866,2.7312194,3282.0,3281.9,0.3991967]
[1722383181985,1.1420788,3282.0,3281.9,0.3991967]
[1722383182192,2.73122583,3282.0,3281.9,0.3991967]
[1722383182739,5.77845407,3282.0,3281.9,0.3991967]
[1722383183094,4.1889988,3282.0,3281.9,0.3991967]
[1722383183496,3.04701,3281.9,3281.8,2.4784]
[1722383183719,4.63675676,3281.9,3281.8,2.4784]
[1722383183944,4.70222804,3281.9,3281.8,2.4784]
[1722383184094,3.11248128,3281.9,3281.8,2.4784]
[1722383184603,3.04715,3281.8,3281.4,2.492]
[1722383184803,1.2720345,3281.5,3281.4,2.492]
[1722383185036,1.33740295,3281.5,3281.4,2.492]
[1722383186143,0.06536845,3281.5,3281.4,2.492]
[1722383186840,1.65537466,3281.5,3281.4,2.492]
[1722383187641,0.06536845,3281.5,3281.4,2.492]
[1722383188013,1.65537466,3281.5,3281.4,2.492]
[1722383188649,0.06536845,3281.5,3281.4,2.492]
[1722383188949,1.59183656,3281.5,3281.4,2.492]
[1722383189150,0.06536572,3281.5,3281.4,2.492]
[1722383189317,0.06536572,3281.5,3281.4,3.045951]
[1722383189565,2.98320388,3281.7,3281.4,3.045951]
[1722383190186,1.97559531,3281.6,3281.4,3.045951]
[1722383191646,1.91020388,3281.5,3281.4,2.492]
[1722383191846,1.9755696,3281.5,3281.4,2.492]
[1722383192048,0.06536572,3281.5,3281.4,2.492]
[1722383192273,1.91286185,3281.5,3281.4,2.492]
[1722383192512,0.06536572,3281.5,3281.4,2.492]
[1722383192789,6.35187073,3281.7,3281.4,2.492]
[1722383193000,0.06536572,3281.5,3281.4,2.492]
[1722383193299,1.13835571,3281.5,3281.4,2.492]
[1722383194706,1.13835571,3281.5,3281.0,2.3311]
[1722383194859,1.91313852,3281.4,3281.0,2.3311]
[1722383195054,1.91313852,3281.3,3281.0,2.3311]
[1722383195262,1.91318344,3281.3,3281.0,2.3311]
[1722383195560,0.06523685,3281.2,3281.0,2.3311]
[1722383195979,0.06521114,3281.1,3281.0,2.3311]
[1722383196404,1.91318344,3281.3,3281.0,2.3311]
[1722383196562,0.06521114,3281.1,3281.0,2.3311]
[1722383196768,1.91318344,3281.3,3281.0,2.3311]
[1722383197004,0.06521114,3281.1,3281.0,2.3311]
[1722383197208,1.91318344,3281.3,3281.0,2.3311]
[1722383197365,0.06521114,3281.1,3281.0,2.3311]
[1722383197910,1.91318344,3281.3,3281.0,2.3311]
[1722383198084,0.06521114,3281.1,3281.0,2.3311]
[1722383198287,1.91318344,3281.3,3281.0,2.3311]
[1722383198493,0.06521114,3281.1,3281.0,2.65091705]
[1722383198666,1.91318344,3281.3,3281.0,2.65091705]
[1722383198868,0.06521114,3281.1,3281.0,2.65091705]
[1722383199069,1.91318344,3281.3,3281.0,2.65091705]
[1722383199310,0.06521114,3281.1,3281.0,2.65091705]
[1722383199507,1.91318344,3281.3,3281.0,2.65091705]
[1722383199684,0.06321114,3281.1,3281.0,2.65091705]
[1722383199890,1.91318344,3281.2,3281.0,2.3311]
[1722383200084,0.06321114,3281.1,3281.0,2.3311]
[1722383201931,1.91359625,3281.2,3281.0,2.3311]
[1722383202083,0.06121114,3281.1,3281.0,2.3311]
[1722383203829,1.97498171,3281.1,3281.0,2.3311]
[1722383203979,0.06121114,3281.1,3281.0,2.3311]
[1722383204182,1.91377199,3281.2,3281.0,2.3311]
[1722383204570,0.06121114,3281.1,3281.0,2.3311]
[1722383205275,1.91425952,3281.2,3281.0,2.3311]
[1722383205481,0.06121114,3281.1,3281.0,2.3311]
[1722383206136,0.06121114,3281.1,3281.0,6.53160687]
[1722383206554,1.91425952,3281.5,3281.3,5.50577]
[1722383206843,0.06117938,3281.4,3281.3,5.50577]
[1722383207536,1.91425952,3281.6,3281.5,3.04738]
[1722383207708,1.91425952,3281.8,3281.6,3.04729]
[1722383207913,1.91425952,3281.8,3281.5,3.07377776]
[1722383208255,1.91425952,3281.7,3281.5,3.07377776]
[1722383208453,1.91456612,3281.7,3281.5,6.12115776]
[1722383210114,1.91456612,3281.7,3281.5,2.4582]
[1722383210340,6.35376047,3281.8,3281.5,2.4582]
[1722383210942,3.30666047,3281.8,3281.5,2.4582]
[1722383211556,1.073,3281.8,3281.5,2.4582]
[1722383211762,3.30637004,3281.8,3281.5,2.4582]
[1722383212086,1.073,3281.8,3281.5,2.4582]
[1722383212215,3.30636918,3281.8,3281.5,2.4582]
[1722383213655,1.073,3281.8,3281.5,2.4582]
[1722383213959,3.30618134,3281.8,3281.5,2.4582]
[1722383215717,5.68482546,3282.1,3281.2,3.04761]
[1722383215718,1.073,3281.6,3281.2,2.4495]
[1722383215955,1.91407986,3281.3,3281.2,2.4495]
[1722383217394,1.91407986,3281.4,3281.2,5.49716]
[1722383218491,3.04722,3281.7,3281.2,5.49716]
[1722383218700,1.9138011,3281.4,3281.2,5.49716]
[1722383219192,1.073,3281.8,3281.3,3.04757]
[1722383219193,1.9138011,3281.5,3281.3,3.04757]
[1722383219395,1.9138011,3281.6,3281.4,3.04747]
[1722383220152,1.9138011,3281.5,3281.4,3.04747]
[1722383220392,1.9138011,3281.6,3281.4,3.04747]
[1722383220696,1.9138011,3281.6,3281.3,3.04757]
[1722383220998,1.97495179,3281.5,3281.3,3.04757]
[1722383221893,0.06115069,3281.5,3281.3,3.04757]
[1722383222055,1.9139208,3281.5,3281.3,3.04757]
[1722383222370,0.0612259,3281.4,3281.3,3.04757]
[1722383223415,1.97511422,3281.4,3280.9,0.0996587]
[1722383223579,1.59486135,3281.1,3281.0,5.50165]
[1722383223905,1.91388832,3281.3,3281.1,3.04774]
[1722383224056,1.91376945,3281.3,3281.1,3.04774]
[1722383225261,1.91369363,3281.3,3281.1,3.04774]
[1722383227205,1.91369363,3281.2,3281.1,3.04774]
[1722383227377,1.91369363,3281.3,3281.1,3.04774]
[1722383227576,1.91369363,3281.2,3281.1,3.04774]
[1722383227903,1.91365797,3281.3,3281.1,3.0477]
[1722383228197,1.91365797,3281.4,3281.2,3.04765]
[1722383228415,1.91365797,3281.4,3281.2,2.99765]
[1722383228565,1.91365797,3281.5,3281.3,9.149175]
[1722383228759,4.12006,3281.9,3281.3,5.49707]
[1722383228984,4.12006,3281.9,3281.4,3.04747]
[1722383228985,1.91380008,3281.5,3281.4,3.04747]
[1722383229755,1.91398263,3281.5,3281.4,3.04747]
[1722383229959,2.23276677,3281.7,3281.3,2.4495]
[1722383230160,1.91400035,3281.4,3281.3,2.4495]
[1722383230721,1.91400035,3281.4,3281.3,5.49706]
[1722383230913,1.97322395,3281.4,3281.3,5.49706]
[1722383231467,0.0592236,3281.4,3281.3,5.49706]
[1722383232682,1.97309675,3281.4,3281.3,5.49706]
[1722383233769,0.0592236,3281.4,3281.3,5.49706]
[1722383234206,1.97309675,3281.4,3281.3,2.4495]
[1722383234371,0.0592236,3281.4,3281.3,2.4495]
[1722383234566,0.0592236,3281.4,3281.1,3.04769]
[1722383234765,1.91343166,3281.3,3280.9,2.5470587]
[1722383234979,1.91343166,3281.0,3280.9,0.0996587]
[1722383235203,1.073,3281.1,3280.9,0.0996587]
[1722383235474,0.05913506,3281.0,3280.9,0.0996587]
[1722383236950,2.2905217,3281.0,3280.9,0.0996587]
[1722383237326,0.05913506,3281.0,3280.9,0.0996587]
[1722383238125,0.05913506,3281.0,3280.9,2.4992587]
[1722383238313,2.23138664,3281.2,3280.9,2.4992587]
[1722383238536,0.05901064,3281.0,3280.9,2.4992587]
[1722383238731,2.23138664,3281.2,3280.9,2.4992587]
[1722383238935,0.05898517,3281.0,3280.9,2.4992587]
[1722383239134,2.23138664,3281.2,3280.9,2.4992587]
[1722383239135,2.23132382,3281.2,3280.9,2.4992587]
[1722383239328,0.05898517,3281.0,3280.9,5.5471987]
[1722383239825,2.23132382,3281.2,3280.9,5.5471987]
[1722383240030,0.05901089,3281.1,3280.9,2.4992587]
[1722383241836,1.91169899,3281.0,3280.9,2.4992587]
[1722383242056,1.970705,3281.0,3280.9,2.4992587]
[1722383242266,0.05900601,3281.0,3280.9,5.5471987]
[1722383242434,2.23007284,3281.2,3280.9,5.5471987]
[1722383242768,1.91150463,3281.0,3280.9,5.5471987]
[1722383243165,1.97051064,3281.0,3280.9,5.5471987]
[1722383243374,1.97051064,3281.0,3280.9,2.4992587]
[1722383243760,0.05900601,3281.0,3280.9,0.0996587]
[1722383243935,0.25605707,3281.0,3280.9,0.0996587]
[1722383245437,2.16602544,3281.0,3280.9,0.0996587]
[1722383246068,5.21387544,3281.0,3280.9,0.0996587]
[1722383246247,8.78655707,3281.0,3280.9,0.0996587]
[1722383246447,11.0156223,3281.0,3280.9,0.0996587]
[1722383246994,11.01376366,3281.0,3280.9,0.0996587]
[1722383247592,8.78655707,3281.0,3280.9,0.0996587]
[1722383248148,3.30390707,3281.0,3280.9,0.0996587]
[1722383248368,6.28437375,3281.0,3280.9,0.0996587]
[1722383248749,7.42475707,3281.0,3280.9,0.0996587]
[1722383249348,9.33134145,3281.0,3280.9,0.0996587]
[1722383249545,7.42475707,3281.0,3280.9,0.0996587]
[1722383250394,9.33085835,3281.0,3280.9,0.0996587]
[1722383250995,7.42475707,3281.0,3280.9,0.0996587]
[1722383251351,4.37690707,3281.0,3280.9,0.0996587]
[1722383251566,4.17985601,3281.0,3280.9,0.0996587]
[1722383252257,6.08601508,3281.0,3280.9,0.0996587]
[1722383252589,4.17985601,3281.0,3280.9,0.0996587]
[1722383253051,3.17985601,3281.0,3280.9,0.0996587]
[1722383253251,3.03596277,3281.0,3280.9,0.0996587]
[1722383253973,6.08381277,3281.0,3280.9,0.0996587]
[1722383254180,4.1776537,3281.0,3280.9,0.0996587]
[1722383254376,6.08400663,3281.0,3280.9,0.0996587]
[1722383254700,4.1776537,3281.0,3280.9,0.0996587]
[1722383254906,3.1776537,3281.0,3280.9,0.0996587]
[1722383258366,2.28828142,3281.0,3280.9,0.0996587]
[1722383258559,0.0568037,3281.0,3280.9,0.0996587]
[1722383259772,0.0568037,3281.0,3280.9,2.75243157]
[1722383259977,1.9695006,3281.0,3280.9,5.80037157]
[1722383260261,0.0568037,3281.0,3280.9,5.80037157]
[1722383260588,0.0568037,3281.0,3280.9,8.84831157]
[1722383260589,1.65016101,3281.0,3280.9,8.84831157]
[1722383260771,0.0568037,3281.0,3280.9,8.84831157]
[1722383261010,1.65019351,3281.0,3280.9,8.84831157]
[1722383261216,1.91206777,3281.2,3281.0,3.04781]
[1722383261396,1.91206777,3281.3,3281.1,0.88481816]
[1722383261821,1.91206777,3281.3,3280.9,2.4376587]
[1722383262095,1.91206777,3281.1,3280.9,2.4376587]
[1722383264143,1.91206777,3281.2,3280.9,2.4376587]
[1722383265947,0.05523306,3281.1,3280.9,2.4376587]
[1722383266169,0.05523306,3281.1,3281.0,0.43023346]
[1722383268555,1.96730083,3281.1,3280.9,2.4376587]
[1722383269021,1.91206777,3281.0,3280.9,2.4376587]
[1722383269435,0.05520734,3281.0,3280.9,2.4376587]
[1722383270666,1.96727511,3281.0,3280.9,2.4376587]
[1722383271066,0.05520734,3281.0,3280.9,2.4376587]
[1722383271416,1.91012888,3281.0,3280.9,2.4376587]
[1722383271673,1.96534419,3281.0,3280.9,2.4376587]
[1722383273257,1.96533461,3281.0,3280.9,2.4376587]
[1722383273955,0.05520734,3281.0,3280.9,2.4376587]
[1722383274127,0.05520734,3281.0,3280.9,6.03416757]
[1722383274870,1.91040899,3281.2,3280.9,6.03416757]
[1722383275019,0.0551529,3281.0,3280.9,6.03416757]
[1722383275225,1.91040899,3281.2,3280.9,6.03416757]
[1722383275466,0.0551529,3281.0,3280.9,6.03416757]
[1722383275668,1.91040899,3281.2,3280.9,6.03416757]
[1722383276169,0.05519018,3281.1,3280.9,6.03416757]
[1722383276671,0.05519018,3281.1,3280.9,6.03410757]
[1722383277677,0.05519018,3281.1,3281.0,3.04785]
[1722383277880,0.05519018,3281.1,3281.0,3.95604576]
[1722383278174,0.05527826,3281.1,3281.0,3.95604576]
[1722383281088,1.90994049,3281.2,3281.1,3.04775]
[1722383281235,1.90994049,3281.4,3281.3,3.04757]
[1722383281434,1.90994049,3281.6,3281.4,3.04747]
[1722383282336,1.90994049,3281.7,3281.4,3.04747]
[1722383282936,1.90994049,3281.6,3281.4,3.04747]
[1722383283136,1.90994049,3281.7,3281.4,3.04747]
[1722383283884,1.90994049,3281.8,3281.7,3.0472]
[1722383284038,1.90994049,3281.9,3281.8,3.0471]
[1722383284236,1.90963168,3281.9,3281.8,3.0471]
[1722383284432,1.90963168,3282.0,3281.8,3.0471]
[1722383284878,1.90914343,3282.1,3281.8,3.04704]
[1722383285840,1.90838376,3282.1,3281.8,3.04704]
[1722383286775,1.073,3282.2,3281.8,3.04704]
[1722383286989,1.90795978,3282.1,3281.8,3.04704]
[1722383287410,2.98095978,3282.2,3281.8,3.04704]
[1722383287580,2.98095978,3282.2,3281.9,3.04701]
[1722383288307,1.073,3282.2,3281.9,3.04701]
[1722383288606,2.98095978,3282.2,3281.7,3.04711]
[1722383288791,1.58910986,3281.9,3281.8,3.04706]
[1722383289718,1.58910986,3282.0,3281.9,3.04701]
[1722383290005,1.58910986,3282.1,3282.0,3.04692]
[1722383290221,2.97963561,3282.4,3282.0,3.04692]
[1722383290516,1.5886333,3282.1,3282.0,3.04692]
[1722383290811,1.073,3282.2,3282.0,3.04692]
[1722383290970,1.58860603,3282.1,3282.0,3.04692]
[1722383291718,1.58860603,3282.1,3282.0,6.09384]
[1722383291914,1.58860603,3282.1,3281.9,3.04701]
[1722383292272,1.27048766,3282.0,3281.9,3.04701]
[1722383292815,1.58860603,3282.1,3281.9,3.04695]
[1722383293023,1.27050087,3282.0,3281.9,3.04695]
[1722383293489,1.27057554,3282.0,3281.9,3.04695]
[1722383293815,1.073,3282.2,3281.9,3.04695]
[1722383294004,1.27043919,3282.0,3281.9,3.04695]
[1722383294997,1.58804899,3282.1,3281.9,6.0939]
[1722383295388,1.27041931,3282.0,3281.9,6.0939]
[1722383296084,1.32339107,3282.0,3281.9,6.0939]
[1722383296281,1.32339107,3282.0,3281.9,6.92895]
[1722383296816,1.32340893,3282.0,3281.9,6.92895]
[1722383298111,0.05297176,3282.0,3281.9,6.92895]
[1722383298315,1.27043717,3282.3,3281.9,6.1815]
[1722383298477,1.27043717,3282.3,3282.2,3.04673]
[1722383298805,1.27043717,3282.4,3282.3,3.04664]
[1722383301308,1.27043717,3282.4,3282.2,3.04668]
[1722383301475,1.27043717,3282.4,3282.3,3.04664]
[1722383302120,1.27043717,3282.4,3282.0,3.04685]
[1722383302441,1.27073658,3282.3,3282.0,3.04685]
[1722383302772,1.27073658,3282.3,3282.0,3.58757831]
[1722383303424,1.27073658,3282.3,3282.2,3.04673]
[1722383303586,2.6615426,3282.4,3282.2,3.04668]
[1722383303787,1.27081526,3282.3,3282.2,3.04668]
[1722383303989,1.27081526,3282.4,3282.3,5.47384]
[1722383304211,1.27081526,3282.4,3282.3,6.325892]
[1722383304407,1.27081526,3282.4,3282.3,9.372532]
[1722383304773,1.27081526,3282.5,3282.4,3.04655]
[1722383305417,1.27081526,3282.5,3282.4,6.0931]
[1722383305714,1.27081526,3282.6,3282.5,6.0929]
[1722383305915,1.27081526,3282.6,3282.5,7.0301152]
[1722383306645,1.27081526,3282.9,3282.8,6.09236]
[1722383306843,1.27081526,3283.0,3282.9,6.09216]
[1722383307350,1.27081526,3283.1,3283.0,3.04599]
[1722383308303,1.27081526,3283.1,3282.8,3.04609]
[1722383308650,1.27081526,3283.1,3282.9,3.04608]
[1722383309417,1.27081526,3283.1,3283.0,3.04599]
[1722383309621,1.27081526,3283.1,3283.0,6.701187]
[1722383309969,1.073,3283.4,3283.1,5.3139]
[1722383309970,1.27081526,3283.2,3283.1,5.3139]
[1722383310448,2.6607946,3283.4,3283.1,5.3139]
[1722383310449,1.27081526,3283.3,3283.1,5.3139]
[1722383310819,0.05370657,3283.2,3283.1,5.3139]
[1722383311015,1.27081526,3283.3,3283.1,5.3139]
[1722383311232,0.05385941,3283.2,3283.1,5.3139]
[1722383311444,1.27081526,3283.3,3283.1,5.3139]
[1722383311637,0.05385941,3283.2,3283.1,5.3139]
[1722383311837,1.27081526,3283.3,3283.1,5.3139]
[1722383312069,0.05385941,3283.2,3283.1,5.3139]
[1722383312419,1.27081526,3283.3,3283.1,5.3139]
[1722383312619,0.05385941,3283.2,3283.1,5.3139]
[1722383312826,1.27081526,3283.3,3283.1,5.3139]
[1722383313123,0.05385941,3283.2,3283.1,5.3139]
[1722383313325,1.27081526,3283.3,3283.1,5.3139]
[1722383313574,0.05385941,3283.2,3283.1,5.3139]
[1722383313871,1.27081526,3283.4,3283.1,5.2239]
[1722383314086,0.05385941,3283.2,3283.1,5.2239]
[1722383314229,1.27081526,3283.3,3283.0,3.04593]
[1722383314429,0.05385941,3283.2,3283.0,3.04593]
[1722383314829,1.073,3283.3,3283.0,3.04593]
[1722383315055,0.05383373,3283.1,3283.0,3.04593]
[1722383315263,2.34381526,3283.3,3283.0,3.04593]
[1722383315428,0.05383373,3283.1,3283.0,3.04593]
[1722383315622,1.073,3283.3,3283.1,3.04589]
[1722383316365,1.27081526,3283.4,3283.1,3.04589]
[1722383316668,1.27081526,3283.4,3283.1,3.24589]
[1722383317043,2.34381526,3283.5,3283.1,3.24589]
[1722383317221,1.27081526,3283.4,3283.1,3.24589]
[1722383317426,2.34381526,3283.5,3283.2,3.0458]
[1722383317670,2.34381526,3283.5,3283.3,3.04566]
[1722383317843,1.073,3283.5,3283.3,3.04566]
[1722383318280,2.34381526,3283.5,3283.3,3.04566]
[1722383318446,1.073,3283.5,3283.3,3.04566]
[1722383319242,2.34381526,3283.5,3283.3,3.04566]
[1722383319569,1.073,3283.5,3283.3,3.04566]
[1722383319773,1.073,3283.5,3283.1,3.24582]
[1722383320533,1.073,3283.5,3283.2,3.0458]
[1722383320976,2.34381526,3283.5,3283.2,3.0458]
[1722383322833,2.34234024,3283.5,3283.2,3.0458]
[1722383324262,1.26934024,3283.4,3283.2,3.0458]
[1722383324649,2.34234024,3283.5,3283.2,3.04574]
[1722383324855,0.15294439,3284.7,3283.5,3.04553]
[1722383324856,1.58721713,3283.7,3283.5,3.04553]
[1722383325181,4.27956055,3284.0,3283.3,0.344574]
[1722383325182,1.2698308,3283.8,3283.7,3.04534]
[1722383325389,1.2698308,3283.9,3283.7,3.04534]
[1722383325734,0.04902989,3283.8,3283.7,3.04534]
[1722383328773,1.2698308,3284.0,3283.7,3.04534]
[1722383329161,0.04905556,3283.9,3283.7,3.04534]
[1722383329340,1.31888636,3283.9,3283.7,3.04534]
[1722383329541,0.04905556,3283.9,3283.7,3.04534]
[1722383329766,0.04905556,3283.9,3283.7,3.04529]
[1722383330078,0.04905556,3283.9,3283.7,6.09056]
[1722383330284,0.04905556,3283.9,3283.8,3.04525]
[1722383330634,0.04905556,3283.9,3283.8,5.32655]
[1722383330844,0.04905556,3283.9,3283.8,6.163738]
[1722383331236,1.2698308,3284.2,3283.9,3.04512]
[1722383331436,1.2698308,3284.3,3283.9,3.04512]
[1722383331988,1.2698308,3284.3,3284.0,3.04505]
[1722383332554,1.26972252,3284.3,3283.8,6.163668]
[1722383332770,4.11788,3284.2,3283.6,5.36746]
[1722383332940,2.34272252,3284.2,3283.7,3.04532]
[1722383333141,1.073,3284.2,3283.9,3.04512]
[1722383333340,1.073,3284.2,3283.8,3.04522]
[1722383333341,2.34272252,3284.2,3283.8,3.04522]
[1722383333638,1.073,3284.2,3283.7,3.04527]
[1722383333871,2.34272252,3284.2,3283.7,3.04527]
[1722383334869,2.34272252,3284.2,3283.8,3.04522]
[1722383335053,1.26972252,3284.2,3283.9,3.04515]
[1722383335256,1.26972252,3284.3,3284.0,2.3221]
[1722383335688,1.26972252,3284.3,3284.0,5.36711]
[1722383336302,1.26972252,3284.4,3284.0,5.36711]
[1722383336614,1.26972252,3284.3,3284.0,5.36711]
[1722383336820,1.26972252,3284.3,3284.1,3.35694325]
[1722383336994,1.26972252,3284.4,3284.1,3.04496]
[1722383337803,1.26972252,3284.4,3284.0,2.3221]
[1722383337804,1.26972252,3284.4,3284.0,5.36714]
[1722383338008,1.26972252,3284.3,3284.0,5.36714]
[1722383338220,5.38753252,3284.3,3284.0,2.3221]
[1722383338419,4.61362252,3284.3,3283.8,3.0452]
[1722383338718,1.26972252,3284.2,3283.8,3.0452]
[1722383338882,2.34272252,3284.3,3283.9,3.04514]
[1722383339084,2.34272252,3284.3,3284.0,3.04504]
[1722383339282,2.34272252,3284.3,3283.9,3.04509]
[1722383340422,1.26972252,3284.2,3283.9,3.04509]
[1722383340922,0.04742831,3284.1,3284.0,3.04506]
[1722383341734,0.04742831,3284.1,3283.9,3.04509]
[1722383341735,0.04742831,3284.1,3283.9,3.04512]
[1722383342084,0.04742831,3284.1,3284.0,3.04506]
[1722383342421,1.26972252,3284.2,3284.0,3.04506]
[1722383342620,0.04744104,3284.1,3284.0,3.04506]
[1722383343793,0.04744104,3284.1,3283.7,3.04528]
[1722383343984,1.31716356,3284.1,3283.9,3.04513]
[1722383344612,0.04744104,3284.1,3283.9,3.04513]
[1722383344924,1.27076542,3284.1,3283.9,3.04513]
[1722383345135,0.04741537,3284.0,3283.9,3.04513]
[1722383347325,0.04741537,3284.0,3283.9,3.54354234]
[1722383347495,0.04741537,3284.0,3283.9,5.98514234]
[1722383348429,1.58888732,3284.2,3284.0,3.04506]
[1722383349845,1.58888732,3284.1,3284.0,3.04506]
[1722383350687,1.58888732,3284.1,3283.6,5.34169]
[1722383350886,1.27198343,3283.9,3283.7,3.04534]
[1722383351087,7.16265,3284.3,3283.6,6.21376246]
[1722383351088,1.58888732,3284.0,3283.8,3.04525]
[1722383351294,4.11779,3284.3,3283.8,3.04525]
[1722383351495,1.5903062,3284.0,3283.8,3.04525]
[1722383352438,1.5903062,3283.9,3283.8,3.04525]
[1722383352753,1.5903062,3284.0,3283.9,3.04515]
[1722383353773,3.04469,3284.4,3283.9,3.04515]
[1722383354048,1.59084478,3284.0,3283.9,3.04515]
[1722383354802,1.59086808,3284.0,3283.9,3.04515]
[1722383355003,1.59086808,3284.0,3283.9,3.74678753]
[1722383355236,1.59089316,3284.1,3283.9,3.74678753]
[1722383355802,0.0474524,3284.0,3283.9,3.74678753]
[1722383356044,1.9090718,3284.2,3283.9,3.04515]
[1722383356343,1.63851043,3284.0,3283.9,3.04515]
[1722383356547,1.59105803,3284.0,3283.9,3.04515]
[1722383356752,0.0474524,3284.0,3283.9,3.04515]
[1722383357036,1.59108101,3284.0,3283.9,3.04515]
[1722383357237,1.63853341,3284.0,3283.9,3.04515]
[1722383357946,1.63853341,3284.0,3283.7,3.04529]
[1722383357947,0.0474524,3284.0,3283.7,3.04529]
[1722383358149,1.59115442,3283.9,3283.7,3.579449]
[1722383358300,1.59115442,3283.9,3283.8,3.04522]
[1722383359849,1.59115442,3283.9,3283.6,2.2963]
[1722383360030,1.27296415,3283.7,3283.6,2.2963]
[1722383360556,1.59115442,3283.7,3283.6,2.2963]
[1722383360732,1.90938467,3283.9,3283.6,2.2963]
[1722383360939,3.04509,3284.0,3283.4,10.39562]
[1722383360940,1.59131282,3283.7,3283.4,10.39562]
[1722383361110,1.59131282,3283.6,3283.4,10.39562]
[1722383361522,1.27315325,3283.5,3283.4,10.39562]
[1722383361741,1.27315325,3283.6,3283.5,3.04553]
[1722383361943,1.27315325,3283.7,3283.5,3.04553]
[1722383362148,1.59144157,3283.8,3283.5,3.04553]
[1722383362149,1.27315325,3283.6,3283.5,3.04553]
[1722383362349,1.27322819,3283.6,3283.5,3.04553]
[1722383362661,1.59144157,3283.7,3283.5,3.04553]
[1722383363067,1.59176738,3283.6,3283.5,3.04553]
[1722383363280,1.90972988,3283.9,3283.5,3.04553]
[1722383363735,1.59207679,3283.6,3283.5,3.04553]
[1722383364317,1.59207679,3283.6,3283.4,3.0]
[1722383364318,1.59207679,3283.6,3283.3,2.4558]
[1722383364554,1.59207679,3283.4,3283.3,2.4558]
[1722383364760,1.59206856,3283.4,3283.3,5.50151]
[1722383364918,1.59204442,3283.4,3283.3,5.50151]
[1722383365122,1.59203587,3283.4,3283.3,5.50146]
[1722383365466,1.59201419,3283.4,3283.3,5.50146]
[1722383365774,1.91041703,3283.7,3283.3,5.50146]
[1722383365924,1.59214499,3283.4,3283.3,5.50146]
[1722383366349,1.59214499,3283.4,3283.3,7.091191]
[1722383366891,1.91079419,3283.7,3283.4,3.0456]
[1722383367498,1.91079419,3283.6,3283.4,3.0456]
[1722383367665,1.073,3284.1,3283.4,3.0456]
[1722383367666,1.59255125,3283.5,3283.4,3.04553]
[1722383367987,1.91079419,3283.7,3283.5,3.0455]
[1722383368146,1.5925423,3283.6,3283.5,3.04547]
[1722383368346,1.59254256,3283.6,3283.5,5.33597]
[1722383368549,1.91105107,3283.9,3283.6,3.04543]
[1722383369100,1.91105107,3283.8,3283.6,3.04543]
[1722383370287,1.91105107,3283.7,3283.6,3.04543]
[1722383370472,1.91105107,3283.8,3283.6,3.04538]
[1722383370767,3.0449,3284.2,3283.8,3.04525]
[1722383370768,1.91105107,3283.9,3283.8,3.04525]